[Event "Titled Tuesday Blitz January 03 Late 2023"]
[White "Cristobal, Manuel"]
[Black "Kleiman, Jake"]
[WhiteFideId "112879"]
[BlackFideId "2020041"]
[WhiteElo "2257"]
[BlackElo "2399"]
[Result "1/2-1/2"]
[Round "07"]
[TimeControl "180+2"]
[Date "2023.01.03"]
[WhiteClock "0:01:00"]
[BlackClock "0:00:14"]

1. d4 {[%clk 0:02:58]}  Nf6 {[%clk 0:02:59]} 2. Nf3 {[%clk 0:02:58]}  e6 {[%clk 0:03:00]} 3. e3 {[%clk 0:02:59]}  d5 {[%clk 0:02:59]} 4. Bd3 {[%clk 0:02:59]}  Bd6 {[%clk 0:03:00]} 5. O-O {[%clk 0:03:00]}  O-O {[%clk 0:03:00]} 6. b3 {[%clk 0:03:00]}  c5 {[%clk 0:03:01]} 7. Bb2 {[%clk 0:03:01]}  Nc6 {[%clk 0:03:01]} 8. Ne5 {[%clk 0:02:59]}  Nd7 {[%clk 0:02:40]} 9. f4 {[%clk 0:02:59]}  f5 {[%clk 0:02:39]} 10. Nd2 {[%clk 0:02:57]}  Ndxe5 {[%clk 0:02:37]} 11. fxe5 {[%clk 0:02:55]}  Be7 {[%clk 0:02:38]} 12. Rf3 {[%clk 0:02:51]}  Bd7 {[%clk 0:02:38]} 13. Rh3 {[%clk 0:02:51]}  Be8 {[%clk 0:02:37]} 14. g4 {[%clk 0:02:47]}  Bg6 {[%clk 0:02:37]} 15. gxf5 {[%clk 0:02:46]}  Bxf5 {[%clk 0:02:37]} 16. Bxf5 {[%clk 0:02:45]}  Rxf5 {[%clk 0:02:38]} 17. Kh1 {[%clk 0:02:43]}  Qd7 {[%clk 0:02:22]} 18. Qg4 {[%clk 0:02:41]}  Raf8 {[%clk 0:02:21]} 19. Rg1 {[%clk 0:02:40]}  R8f7 {[%clk 0:02:18]} 20. Nf3 {[%clk 0:02:39]}  Qe8 {[%clk 0:02:02]} 21. Rhg3 {[%clk 0:02:36]}  Qf8 {[%clk 0:01:58]} 22. Ne1 {[%clk 0:02:35]}  Kh8 {[%clk 0:01:49]} 23. c4 {[%clk 0:02:27]}  cxd4 {[%clk 0:01:43]} 24. exd4 {[%clk 0:02:27]}  Bg5 {[%clk 0:01:37]} 25. cxd5 {[%clk 0:02:26]}  exd5 {[%clk 0:01:38]} 26. Nf3 {[%clk 0:02:16]}  Bh6 {[%clk 0:01:33]} 27. Nh4 {[%clk 0:02:15]}  Rf2 {[%clk 0:01:27]} 28. R3g2 {[%clk 0:02:14]}  Rxg2 {[%clk 0:01:24]} 29. Nxg2 {[%clk 0:02:13]}  Rf2 {[%clk 0:01:18]} 30. Bc3 {[%clk 0:02:09]}  a6 {[%clk 0:01:08]} 31. e6 {[%clk 0:02:04]}  Qe7 {[%clk 0:00:58]} 32. Re1 {[%clk 0:01:55]}  Qf6 {[%clk 0:00:53]} 33. Kg1 {[%clk 0:01:53]}  Ne7 {[%clk 0:00:48]} 34. Qg3 {[%clk 0:01:51]}  Rf3 {[%clk 0:00:34]} 35. Qb8+ {[%clk 0:01:50]}  Qf8 {[%clk 0:00:16]} 36. Qxf8+ {[%clk 0:01:49]}  Rxf8 {[%clk 0:00:17]} 37. Bb4 {[%clk 0:01:49]}  Re8 {[%clk 0:00:18]} 38. Nh4 {[%clk 0:01:47]}  Bg5 {[%clk 0:00:17]} 39. Nf3 {[%clk 0:01:46]}  Bf6 {[%clk 0:00:17]} 40. Ne5 {[%clk 0:01:44]}  Nf5 {[%clk 0:00:16]} 41. Bc5 {[%clk 0:01:43]}  Kg8 {[%clk 0:00:17]} 42. Nf3 {[%clk 0:01:42]}  g6 {[%clk 0:00:15]} 43. Re2 {[%clk 0:01:41]}  Ng7 {[%clk 0:00:16]} 44. e7 {[%clk 0:01:40]}  Kf7 {[%clk 0:00:16]} 45. Ne5+ {[%clk 0:01:40]}  Kg8 {[%clk 0:00:16]} 46. Nd7 {[%clk 0:01:39]}  Kf7 {[%clk 0:00:15]} 47. Rf2 {[%clk 0:01:35]}  Nf5 {[%clk 0:00:15]} 48. a4 {[%clk 0:01:24]}  Bxe7 {[%clk 0:00:15]} 49. Ne5+ {[%clk 0:01:24]}  Ke6 {[%clk 0:00:15]} 50. Bb6 {[%clk 0:01:21]}  Bd6 {[%clk 0:00:13]} 51. Re2 {[%clk 0:01:21]}  Kf6 {[%clk 0:00:12]} 52. Ng4+ {[%clk 0:01:20]}  Kf7 {[%clk 0:00:12]} 53. Rxe8 {[%clk 0:01:20]}  Kxe8 {[%clk 0:00:11]} 54. Nf6+ {[%clk 0:01:20]}  Kf7 {[%clk 0:00:12]} 55. Nxd5 {[%clk 0:01:20]}  Ke6 {[%clk 0:00:12]} 56. Nc3 {[%clk 0:01:19]}  Bf4 {[%clk 0:00:11]} 57. Kg2 {[%clk 0:01:18]}  Be3 {[%clk 0:00:10]} 58. d5+ {[%clk 0:01:18]}  Ke5 {[%clk 0:00:11]} 59. Bc7+ {[%clk 0:01:17]}  Kd4 {[%clk 0:00:11]} 60. Ne2+ {[%clk 0:01:15]}  Kxd5 {[%clk 0:00:11]} 61. Kf3 {[%clk 0:01:15]}  Bc5 {[%clk 0:00:11]} 62. Nf4+ {[%clk 0:01:15]}  Kc6 {[%clk 0:00:11]} 63. Be5 {[%clk 0:01:16]}  Bd6 {[%clk 0:00:11]} 64. Ke4 {[%clk 0:01:15]}  Bxe5 {[%clk 0:00:11]} 65. Kxe5 {[%clk 0:01:15]}  Kc5 {[%clk 0:00:11]} 66. Nd3+ {[%clk 0:01:13]}  Kc6 {[%clk 0:00:11]} 67. Nf4 {[%clk 0:01:10]}  a5 {[%clk 0:00:10]} 68. Ne6 {[%clk 0:01:09]}  b6 {[%clk 0:00:10]} 69. Kf6 {[%clk 0:01:03]}  Nh4 {[%clk 0:00:09]} 70. Ng5 {[%clk 0:01:03]}  h5 {[%clk 0:00:08]} 71. Ne4 {[%clk 0:01:02]}  Kd5 {[%clk 0:00:09]} 72. Nd2 {[%clk 0:01:01]}  Kd4 {[%clk 0:00:09]} 73. Kg5 {[%clk 0:01:00]}  Kc3 {[%clk 0:00:08]} 74. Nc4 {[%clk 0:01:00]}  Nf3+ {[%clk 0:00:08]} 75. Kxg6 {[%clk 0:00:59]}  Nxh2 {[%clk 0:00:08]} 76. Kxh5 {[%clk 0:00:59]}  Kxb3 {[%clk 0:00:07]} 77. Nxb6 {[%clk 0:00:59]}  Nf3 {[%clk 0:00:07]} 78. Kg4 {[%clk 0:00:56]}  Ne5+ {[%clk 0:00:06]} 79. Kf5 {[%clk 0:00:56]}  Nc4 {[%clk 0:00:06]} 80. Nxc4 {[%clk 0:00:55]}  Kxc4 {[%clk 0:00:07]} 81. Ke4 {[%clk 0:00:56]}  Kb4 {[%clk 0:00:08]} 82. Kd4 {[%clk 0:00:56]}  Kxa4 {[%clk 0:00:09]} 83. Kc3 {[%clk 0:00:57]}  Ka3 {[%clk 0:00:10]} 84. Kc2 {[%clk 0:00:57]}  Ka2 {[%clk 0:00:10]} 85. Kc1 {[%clk 0:00:58]}  Ka1 {[%clk 0:00:11]} 86. Kc2 {[%clk 0:00:59]}  a4 {[%clk 0:00:12]} 87. Kc1 {[%clk 0:00:58]}  a3 {[%clk 0:00:13]} 88. Kc2 {[%clk 0:00:59]}  a2 {[%clk 0:00:14]} 89. Kc1 {[%clk 0:01:00]} 1/2-1/2


[Site "https://www.chess.com"]

[Event "Titled Tuesday Blitz January 03 Late 2023"]
[White "Chor, Kevin"]
[Black "Rozman, Levy"]
[WhiteFideId "2090740"]
[BlackFideId "2039877"]
[WhiteElo "1944"]
[BlackElo "2322"]
[Result "0-1"]
[Round "07"]
[TimeControl "180+2"]
[Date "2023.01.03"]
[WhiteClock "0:00:18"]
[BlackClock "0:01:19"]

1. e4 {[%clk 0:02:59]}  e6 {[%clk 0:02:59]} 2. d4 {[%clk 0:02:50]}  d5 {[%clk 0:03:00]} 3. Nd2 {[%clk 0:02:46]}  dxe4 {[%clk 0:03:00]} 4. Nxe4 {[%clk 0:02:46]}  Nf6 {[%clk 0:03:01]} 5. Bg5 {[%clk 0:02:45]}  Be7 {[%clk 0:03:00]} 6. Bxf6 {[%clk 0:02:42]}  gxf6 {[%clk 0:03:00]} 7. Nf3 {[%clk 0:02:42]}  f5 {[%clk 0:02:58]} 8. Ned2 {[%clk 0:02:35]}  Bf6 {[%clk 0:02:53]} 9. c3 {[%clk 0:02:30]}  Rg8 {[%clk 0:02:46]} 10. g3 {[%clk 0:02:27]}  b6 {[%clk 0:02:43]} 11. Bg2 {[%clk 0:02:25]}  Bb7 {[%clk 0:02:43]} 12. Qe2 {[%clk 0:02:15]}  Qe7 {[%clk 0:02:37]} 13. O-O {[%clk 0:02:07]}  h5 {[%clk 0:02:35]} 14. Nc4 {[%clk 0:02:06]}  Nd7 {[%clk 0:02:33]} 15. Nfe5 {[%clk 0:02:00]}  Bxg2 {[%clk 0:02:31]} 16. Kxg2 {[%clk 0:02:00]}  Bxe5 {[%clk 0:02:18]} 17. Nxe5 {[%clk 0:01:57]}  Nxe5 {[%clk 0:02:17]} 18. Qxe5 {[%clk 0:01:52]}  O-O-O {[%clk 0:02:14]} 19. a4 {[%clk 0:01:47]}  Rd5 {[%clk 0:02:10]} 20. Qe2 {[%clk 0:01:26]}  h4 {[%clk 0:01:59]} 21. a5 {[%clk 0:01:20]}  b5 {[%clk 0:01:57]} 22. c4 {[%clk 0:00:59]}  bxc4 {[%clk 0:01:54]} 23. Qxc4 {[%clk 0:01:00]}  f4 {[%clk 0:01:54]} 24. Qa6+ {[%clk 0:00:47]}  Kd7 {[%clk 0:01:45]} 25. Rac1 {[%clk 0:00:46]}  Qd6 {[%clk 0:01:36]} 26. Qxd6+ {[%clk 0:00:25]}  cxd6 {[%clk 0:01:36]} 27. Rc4 {[%clk 0:00:25]}  Rxa5 {[%clk 0:01:30]} 28. Rfc1 {[%clk 0:00:25]}  Ke7 {[%clk 0:01:30]} 29. Rc7+ {[%clk 0:00:23]}  Kf6 {[%clk 0:01:30]} 30. Rd7 {[%clk 0:00:24]}  Rd5 {[%clk 0:01:29]} 31. Rcc7 {[%clk 0:00:23]}  Rg7 {[%clk 0:01:29]} 32. Rxa7 {[%clk 0:00:22]}  hxg3 {[%clk 0:01:28]} 33. hxg3 {[%clk 0:00:21]}  fxg3 {[%clk 0:01:25]} 34. fxg3 {[%clk 0:00:22]}  Rxd4 {[%clk 0:01:26]} 35. Ra3 {[%clk 0:00:20]}  Rd2+ {[%clk 0:01:25]} 36. Kh3 {[%clk 0:00:20]}  d5 {[%clk 0:01:19]} 37. Rf3+ {[%clk 0:00:20]}  Kg6 {[%clk 0:01:20]} 38. b3 {[%clk 0:00:18]}  Rh7+ {[%clk 0:01:19]} 39. Kg4 {[%clk 0:00:18]}  f5+ {[%clk 0:01:19]} 40. Kf4 {[%clk 0:00:18]}  Rxd7 {[%clk 0:01:19]} 0-1


[Site "https://www.chess.com"]

[Event "Titled Tuesday Blitz January 03 Late 2023"]
[White "Brodowski, Piotr"]
[Black "Goryachkina, Aleksandra"]
[WhiteFideId "1124480"]
[BlackFideId "4147103"]
[WhiteElo "2457"]
[BlackElo "2571"]
[Result "0-1"]
[Round "07"]
[TimeControl "180+2"]
[Date "2023.01.03"]
[WhiteClock "0:00:02"]
[BlackClock "0:00:12"]

1. c4 {[%clk 0:02:58]}  Nf6 {[%clk 0:02:59]} 2. Nc3 {[%clk 0:02:56]}  c5 {[%clk 0:02:59]} 3. g3 {[%clk 0:02:56]}  g6 {[%clk 0:02:58]} 4. Bg2 {[%clk 0:02:56]}  Bg7 {[%clk 0:02:58]} 5. a3 {[%clk 0:02:56]}  O-O {[%clk 0:02:58]} 6. b4 {[%clk 0:02:55]}  d6 {[%clk 0:02:40]} 7. Nf3 {[%clk 0:02:35]}  Be6 {[%clk 0:02:36]} 8. Qb3 {[%clk 0:02:34]}  Nc6 {[%clk 0:02:33]} 9. O-O {[%clk 0:02:30]}  Rc8 {[%clk 0:02:21]} 10. Bb2 {[%clk 0:02:26]}  Nd4 {[%clk 0:01:53]} 11. Nxd4 {[%clk 0:02:21]}  cxd4 {[%clk 0:01:53]} 12. Nd5 {[%clk 0:02:22]}  Nxd5 {[%clk 0:01:52]} 13. cxd5 {[%clk 0:02:22]}  Bg4 {[%clk 0:01:52]} 14. Rfe1 {[%clk 0:02:03]}  Qb6 {[%clk 0:01:51]} 15. h3 {[%clk 0:02:03]}  Bd7 {[%clk 0:01:48]} 16. Rac1 {[%clk 0:02:02]}  a5 {[%clk 0:01:48]} 17. d3 {[%clk 0:01:28]}  Bh6 {[%clk 0:01:05]} 18. Rc4 {[%clk 0:01:23]}  Rxc4 {[%clk 0:00:55]} 19. Qxc4 {[%clk 0:01:20]}  Bg7 {[%clk 0:00:53]} 20. Rc1 {[%clk 0:01:02]}  Rc8 {[%clk 0:00:51]} 21. Qb3 {[%clk 0:01:02]}  Rxc1+ {[%clk 0:00:49]} 22. Bxc1 {[%clk 0:01:02]}  axb4 {[%clk 0:00:38]} 23. Qxb4 {[%clk 0:01:01]}  Qc5 {[%clk 0:00:23]} 24. Qxc5 {[%clk 0:00:42]}  dxc5 {[%clk 0:00:24]} 25. d6 {[%clk 0:00:43]}  exd6 {[%clk 0:00:21]} 26. Bxb7 {[%clk 0:00:43]}  Kf8 {[%clk 0:00:20]} 27. h4 {[%clk 0:00:41]}  Ke7 {[%clk 0:00:20]} 28. Kf1 {[%clk 0:00:41]}  Ba4 {[%clk 0:00:19]} 29. Ke1 {[%clk 0:00:40]}  Ke6 {[%clk 0:00:19]} 30. Bc8+ {[%clk 0:00:30]}  Kd5 {[%clk 0:00:19]} 31. Bf4 {[%clk 0:00:24]}  Be5 {[%clk 0:00:18]} 32. Bh6 {[%clk 0:00:23]}  Kc6 {[%clk 0:00:17]} 33. Kd2 {[%clk 0:00:22]}  d5 {[%clk 0:00:16]} 34. h5 {[%clk 0:00:18]}  c4 {[%clk 0:00:16]} 35. hxg6 {[%clk 0:00:18]}  hxg6 {[%clk 0:00:16]} 36. Bf8 {[%clk 0:00:15]}  c3+ {[%clk 0:00:14]} 37. Kc1 {[%clk 0:00:14]}  Kc7 {[%clk 0:00:13]} 38. Ba6 {[%clk 0:00:13]}  f5 {[%clk 0:00:12]} 39. Kb1 {[%clk 0:00:03]}  Bd7 {[%clk 0:00:12]} 40. e3 {[%clk 0:00:03]}  Kb6 {[%clk 0:00:11]} 41. exd4 {[%clk 0:00:02]}  Bxd4 {[%clk 0:00:12]} 0-1


[Site "https://www.chess.com"]

[Event "Titled Tuesday Blitz January 03 Late 2023"]
[White "Altman, Joshua"]
[Black "Sai Krishna G V"]
[WhiteFideId "426210"]
[BlackFideId "5028280"]
[WhiteElo "2120"]
[BlackElo "2384"]
[Result "0-1"]
[Round "07"]
[TimeControl "180+2"]
[Date "2023.01.03"]
[WhiteClock "0:00:07"]
[BlackClock "0:00:20"]

1. d4 {[%clk 0:03:00]}  Nf6 {[%clk 0:02:59]} 2. c4 {[%clk 0:03:00]}  g6 {[%clk 0:03:00]} 3. Nc3 {[%clk 0:03:00]}  Bg7 {[%clk 0:03:00]} 4. Nf3 {[%clk 0:03:01]}  O-O {[%clk 0:03:00]} 5. Bg5 {[%clk 0:03:01]}  c5 {[%clk 0:02:56]} 6. e3 {[%clk 0:03:01]}  h6 {[%clk 0:02:54]} 7. Bh4 {[%clk 0:03:00]}  Nc6 {[%clk 0:02:52]} 8. Be2 {[%clk 0:02:59]}  Qb6 {[%clk 0:02:45]} 9. O-O {[%clk 0:02:43]}  Qxb2 {[%clk 0:02:22]} 10. Nb5 {[%clk 0:02:22]}  Qb4 {[%clk 0:02:13]} 11. Bg3 {[%clk 0:01:58]}  Ne4 {[%clk 0:01:58]} 12. Rb1 {[%clk 0:01:32]}  Qa5 {[%clk 0:01:49]} 13. Bc7 {[%clk 0:01:28]}  Qa6 {[%clk 0:01:38]} 14. Qc2 {[%clk 0:01:22]}  f5 {[%clk 0:01:24]} 15. dxc5 {[%clk 0:00:54]}  Nxc5 {[%clk 0:00:51]} 16. Bg3 {[%clk 0:00:53]}  Qa4 {[%clk 0:00:51]} 17. Qxa4 {[%clk 0:00:19]}  Nxa4 {[%clk 0:00:52]} 18. Nc7 {[%clk 0:00:20]}  Rb8 {[%clk 0:00:53]} 19. Nd5 {[%clk 0:00:14]}  d6 {[%clk 0:00:52]} 20. Bd1 {[%clk 0:00:11]}  Nc3 {[%clk 0:00:47]} 21. Nxc3 {[%clk 0:00:11]}  Bxc3 {[%clk 0:00:48]} 22. Bb3 {[%clk 0:00:11]}  Kg7 {[%clk 0:00:48]} 23. Rfc1 {[%clk 0:00:11]}  Be5 {[%clk 0:00:47]} 24. Nxe5 {[%clk 0:00:10]}  Nxe5 {[%clk 0:00:46]} 25. c5 {[%clk 0:00:10]}  Kf6 {[%clk 0:00:46]} 26. cxd6 {[%clk 0:00:10]}  exd6 {[%clk 0:00:47]} 27. Rc7 {[%clk 0:00:10]}  Be6 {[%clk 0:00:37]} 28. Bxe6 {[%clk 0:00:09]}  Kxe6 {[%clk 0:00:38]} 29. Rcxb7 {[%clk 0:00:09]}  Rxb7 {[%clk 0:00:35]} 30. Rxb7 {[%clk 0:00:10]}  Rc8 {[%clk 0:00:35]} 31. h3 {[%clk 0:00:07]}  a5 {[%clk 0:00:33]} 32. Ra7 {[%clk 0:00:07]}  Rc1+ {[%clk 0:00:33]} 33. Kh2 {[%clk 0:00:07]}  Nc4 {[%clk 0:00:34]} 34. Ra6 {[%clk 0:00:07]}  Rc2 {[%clk 0:00:33]} 35. a4 {[%clk 0:00:07]}  Ra2 {[%clk 0:00:34]} 36. Ra7 {[%clk 0:00:05]}  Nd2 {[%clk 0:00:29]} 37. h4 {[%clk 0:00:03]}  Rxa4 {[%clk 0:00:27]} 38. Ra6 {[%clk 0:00:02]}  Ne4 {[%clk 0:00:27]} 39. Bf4 {[%clk 0:00:02]}  g5 {[%clk 0:00:27]} 40. hxg5 {[%clk 0:00:03]}  hxg5 {[%clk 0:00:28]} 41. Bg3 {[%clk 0:00:04]}  Ra2 {[%clk 0:00:26]} 42. Ra7 {[%clk 0:00:03]}  a4 {[%clk 0:00:24]} 43. Ra6 {[%clk 0:00:03]}  a3 {[%clk 0:00:24]} 44. f3 {[%clk 0:00:04]}  Nd2 {[%clk 0:00:20]} 45. Rxd6+ {[%clk 0:00:03]}  Kf7 {[%clk 0:00:20]} 46. Rd3 {[%clk 0:00:03]}  Nf1+ {[%clk 0:00:20]} 47. Kh3 {[%clk 0:00:04]}  Ra1 {[%clk 0:00:19]} 48. Rd5 {[%clk 0:00:04]}  a2 {[%clk 0:00:19]} 49. Rxf5+ {[%clk 0:00:04]}  Kg6 {[%clk 0:00:19]} 50. Ra5 {[%clk 0:00:05]}  Nxe3 {[%clk 0:00:20]} 51. Bf2 {[%clk 0:00:03]}  Rh1+ {[%clk 0:00:19]} 52. Kg3 {[%clk 0:00:03]}  Nf5+ {[%clk 0:00:20]} 53. Kg4 {[%clk 0:00:04]}  a1=Q {[%clk 0:00:19]} 54. Rxa1 {[%clk 0:00:04]}  Rxa1 {[%clk 0:00:20]} 55. Bg3 {[%clk 0:00:04]}  Ra4+ {[%clk 0:00:20]} 56. Kh3 {[%clk 0:00:05]}  Nxg3 {[%clk 0:00:20]} 57. Kxg3 {[%clk 0:00:06]}  Kf5 {[%clk 0:00:20]} 58. Kh3 {[%clk 0:00:06]}  Kf4 {[%clk 0:00:20]} 59. g4 {[%clk 0:00:07]}  Kxf3 {[%clk 0:00:20]} 0-1


[Site "https://www.chess.com"]

[Event "Titled Tuesday Blitz January 03 Late 2023"]
[White "Sukandar, Irine Kharisma"]
[Black "Jaracz, Pawel"]
[WhiteFideId "7101937"]
[BlackFideId "1102222"]
[WhiteElo "2390"]
[BlackElo "2467"]
[Result "0-1"]
[Round "07"]
[TimeControl "180+2"]
[Date "2023.01.03"]
[WhiteClock "0:00:01"]
[BlackClock "0:00:30"]

1. d4 {[%clk 0:02:55]}  Nf6 {[%clk 0:02:59]} 2. Bf4 {[%clk 0:02:54]}  e6 {[%clk 0:02:57]} 3. e3 {[%clk 0:02:53]}  c5 {[%clk 0:02:57]} 4. Nd2 {[%clk 0:02:49]}  Nc6 {[%clk 0:02:54]} 5. Ngf3 {[%clk 0:02:46]}  Be7 {[%clk 0:02:53]} 6. Nc4 {[%clk 0:02:38]}  d5 {[%clk 0:02:50]} 7. Nce5 {[%clk 0:02:35]}  Qb6 {[%clk 0:02:49]} 8. Be2 {[%clk 0:02:12]}  Qxb2 {[%clk 0:02:45]} 9. O-O {[%clk 0:02:12]}  O-O {[%clk 0:02:38]} 10. Nxc6 {[%clk 0:02:08]}  bxc6 {[%clk 0:02:38]} 11. Ne5 {[%clk 0:02:08]}  Bd7 {[%clk 0:02:30]} 12. Rb1 {[%clk 0:01:57]}  Qa3 {[%clk 0:02:24]} 13. Rb7 {[%clk 0:01:57]}  Rfd8 {[%clk 0:02:01]} 14. Bg5 {[%clk 0:01:56]}  cxd4 {[%clk 0:01:44]} 15. Bxf6 {[%clk 0:01:47]}  gxf6 {[%clk 0:01:38]} 16. Nxd7 {[%clk 0:01:44]}  dxe3 {[%clk 0:01:35]} 17. Qd4 {[%clk 0:01:39]}  exf2+ {[%clk 0:00:56]} 18. Qxf2 {[%clk 0:01:31]}  f5 {[%clk 0:00:53]} 19. Rb3 {[%clk 0:01:08]}  Qd6 {[%clk 0:00:39]} 20. Rg3+ {[%clk 0:01:07]}  Kh8 {[%clk 0:00:39]} 21. Qd4+ {[%clk 0:01:06]}  f6 {[%clk 0:00:38]} 22. Nxf6 {[%clk 0:00:27]}  e5 {[%clk 0:00:38]} 23. Qf2 {[%clk 0:00:06]}  Qxf6 {[%clk 0:00:34]} 24. Qxf5 {[%clk 0:00:05]}  Qxf5 {[%clk 0:00:31]} 25. Rxf5 {[%clk 0:00:06]}  Rf8 {[%clk 0:00:32]} 26. Rxf8+ {[%clk 0:00:02]}  Rxf8 {[%clk 0:00:31]} 27. h3 {[%clk 0:00:01]}  Bc5+ {[%clk 0:00:31]} 28. Kh2 {[%clk 0:00:01]}  Rf2 {[%clk 0:00:30]} 0-1


[Site "https://www.chess.com"]

[Event "Titled Tuesday Blitz January 03 Late 2023"]
[White "UnknownMagician"]
[Black "Przybylski, Wojciech"]
[BlackFideId "1117599"]
[WhiteElo "2670"]
[BlackElo "2321"]
[Result "0-1"]
[Round "07"]
[TimeControl "180+2"]
[Date "2023.01.03"]
[WhiteClock "0:00:01"]
[BlackClock "0:00:19"]

1. c4 {[%clk 0:03:00]}  e5 {[%clk 0:02:58]} 2. Nc3 {[%clk 0:03:01]}  Nf6 {[%clk 0:02:58]} 3. g3 {[%clk 0:03:01]}  d5 {[%clk 0:02:58]} 4. cxd5 {[%clk 0:03:01]}  Nxd5 {[%clk 0:02:59]} 5. Bg2 {[%clk 0:03:01]}  Nb6 {[%clk 0:02:59]} 6. Nf3 {[%clk 0:02:58]}  Nc6 {[%clk 0:03:00]} 7. b3 {[%clk 0:02:58]}  Be7 {[%clk 0:03:00]} 8. Bb2 {[%clk 0:02:58]}  O-O {[%clk 0:03:00]} 9. O-O {[%clk 0:02:58]}  f6 {[%clk 0:02:58]} 10. e3 {[%clk 0:02:57]}  Be6 {[%clk 0:02:57]} 11. a3 {[%clk 0:02:50]}  a5 {[%clk 0:02:55]} 12. Rc1 {[%clk 0:02:48]}  Qd7 {[%clk 0:02:52]} 13. Ne4 {[%clk 0:02:40]}  Qd5 {[%clk 0:02:35]} 14. Nc5 {[%clk 0:02:16]}  Bxc5 {[%clk 0:02:32]} 15. Nd4 {[%clk 0:02:15]}  Qd6 {[%clk 0:02:04]} 16. Nxe6 {[%clk 0:02:14]}  Qxe6 {[%clk 0:02:02]} 17. Rxc5 {[%clk 0:02:13]}  Rfd8 {[%clk 0:02:01]} 18. Qc2 {[%clk 0:02:13]}  Rd6 {[%clk 0:01:55]} 19. Rc1 {[%clk 0:02:10]}  Nd7 {[%clk 0:01:51]} 20. Rb5 {[%clk 0:02:07]}  Nb6 {[%clk 0:01:47]} 21. Be4 {[%clk 0:02:00]}  g6 {[%clk 0:01:40]} 22. Rc5 {[%clk 0:01:58]}  Nd7 {[%clk 0:01:39]} 23. Rc3 {[%clk 0:01:46]}  Ra6 {[%clk 0:01:29]} 24. Bd3 {[%clk 0:01:44]}  Rb6 {[%clk 0:01:28]} 25. Bc4 {[%clk 0:01:44]}  Rd5 {[%clk 0:01:21]} 26. e4 {[%clk 0:01:43]}  Ne7 {[%clk 0:01:07]} 27. Rd3 {[%clk 0:01:39]}  c6 {[%clk 0:01:05]} 28. Re1 {[%clk 0:01:24]}  Kg7 {[%clk 0:00:55]} 29. exd5 {[%clk 0:01:24]}  cxd5 {[%clk 0:00:55]} 30. b4 {[%clk 0:01:15]}  dxc4 {[%clk 0:00:53]} 31. Rde3 {[%clk 0:01:13]}  axb4 {[%clk 0:00:51]} 32. axb4 {[%clk 0:01:14]}  Nd5 {[%clk 0:00:48]} 33. Re4 {[%clk 0:00:38]}  Rxb4 {[%clk 0:00:47]} 34. Ba3 {[%clk 0:00:20]}  Rb3 {[%clk 0:00:45]} 35. Bc1 {[%clk 0:00:20]}  b5 {[%clk 0:00:43]} 36. Qa2 {[%clk 0:00:18]}  Nb4 {[%clk 0:00:31]} 37. Qa7 {[%clk 0:00:16]}  Nd3 {[%clk 0:00:31]} 38. Rd1 {[%clk 0:00:08]}  Qd5 {[%clk 0:00:28]} 39. Re3 {[%clk 0:00:06]}  Rb1 {[%clk 0:00:24]} 40. Rxd3 {[%clk 0:00:03]}  Qxd3 {[%clk 0:00:22]} 41. Qe3 {[%clk 0:00:02]}  e4 {[%clk 0:00:20]} 42. Qe2 {[%clk 0:00:01]}  Qxe2 {[%clk 0:00:19]} 0-1


[Site "https://www.chess.com"]

[Event "Titled Tuesday Blitz January 03 Late 2023"]
[White "Abrahamyan, Tatev"]
[Black "Davtyan, David Arm."]
[WhiteFideId "13301918"]
[BlackFideId "13310046"]
[WhiteElo "2294"]
[BlackElo "2344"]
[Result "0-1"]
[Round "07"]
[TimeControl "180+2"]
[Date "2023.01.03"]
[WhiteClock "0:00:11"]
[BlackClock "0:00:24"]

1. e4 {[%clk 0:02:52]}  c6 {[%clk 0:02:59]} 2. Nf3 {[%clk 0:02:51]}  d5 {[%clk 0:03:00]} 3. d3 {[%clk 0:02:51]}  Qc7 {[%clk 0:02:59]} 4. exd5 {[%clk 0:02:47]}  cxd5 {[%clk 0:02:58]} 5. c4 {[%clk 0:02:47]}  dxc4 {[%clk 0:02:34]} 6. dxc4 {[%clk 0:02:46]}  e6 {[%clk 0:02:30]} 7. Nc3 {[%clk 0:02:43]}  Nf6 {[%clk 0:02:29]} 8. g3 {[%clk 0:02:40]}  Bb4 {[%clk 0:02:27]} 9. Qb3 {[%clk 0:02:33]}  Nc6 {[%clk 0:02:19]} 10. Bf4 {[%clk 0:02:30]}  Qa5 {[%clk 0:02:14]} 11. Bd2 {[%clk 0:02:25]}  e5 {[%clk 0:01:50]} 12. O-O-O {[%clk 0:01:56]}  e4 {[%clk 0:01:43]} 13. Re1 {[%clk 0:01:34]}  O-O {[%clk 0:01:35]} 14. Nxe4 {[%clk 0:01:31]}  Nxe4 {[%clk 0:01:24]} 15. Bxb4 {[%clk 0:01:22]}  Nxb4 {[%clk 0:01:21]} 16. Rxe4 {[%clk 0:01:21]}  Nxa2+ {[%clk 0:01:14]} 17. Kb1 {[%clk 0:01:07]}  Bf5 {[%clk 0:01:13]} 18. Bd3 {[%clk 0:01:05]}  Nb4 {[%clk 0:00:51]} 19. Re5 {[%clk 0:00:35]}  Bxd3+ {[%clk 0:00:50]} 20. Qxd3 {[%clk 0:00:32]}  Qxe5 {[%clk 0:00:50]} 21. Nxe5 {[%clk 0:00:32]}  Nxd3 {[%clk 0:00:50]} 22. Nxd3 {[%clk 0:00:32]}  Rfe8 {[%clk 0:00:48]} 23. Nf4 {[%clk 0:00:32]}  Rad8 {[%clk 0:00:46]} 24. Kc2 {[%clk 0:00:29]}  Re4 {[%clk 0:00:45]} 25. Kc3 {[%clk 0:00:27]}  Rc8 {[%clk 0:00:39]} 26. b3 {[%clk 0:00:25]}  b5 {[%clk 0:00:40]} 27. Kd3 {[%clk 0:00:26]}  Ree8 {[%clk 0:00:36]} 28. Rc1 {[%clk 0:00:24]}  bxc4+ {[%clk 0:00:35]} 29. bxc4 {[%clk 0:00:24]}  a5 {[%clk 0:00:36]} 30. Nd5 {[%clk 0:00:24]}  a4 {[%clk 0:00:36]} 31. Ra1 {[%clk 0:00:24]}  Ra8 {[%clk 0:00:35]} 32. Ra3 {[%clk 0:00:25]}  Reb8 {[%clk 0:00:33]} 33. Kc3 {[%clk 0:00:25]}  Kf8 {[%clk 0:00:32]} 34. c5 {[%clk 0:00:23]}  Ra5 {[%clk 0:00:30]} 35. Nb6 {[%clk 0:00:16]}  Rxc5+ {[%clk 0:00:29]} 36. Kd4 {[%clk 0:00:17]}  Rc7 {[%clk 0:00:26]} 37. Nxa4 {[%clk 0:00:14]}  Ra7 {[%clk 0:00:25]} 38. Ra2 {[%clk 0:00:11]}  Rb4+ {[%clk 0:00:24]} 0-1


[Site "https://www.chess.com"]